[Event "European Amateur-ch U2300 2019"]
[Site "Rhodes"]
[Date "2019.04.07"]
[Round "2.4"]
[White "Cmiel, Thorsten"]
[Black "Minko, Dmitry"]
[Result "1/2-1/2"]
[ECO "D32"]
[WhiteElo "2109"]
[BlackElo "2169"]
[Annotator "NA"]
[PlyCount "57"]
[EventDate "2019.04.06"]
[EventType "swiss"]
[EventCountry "GRE"]
[SourceTitle "playchess.com"]
[Source "ChessBase"]
[SourceQuality "1"]
[TimeControl "40/5400+30:1800+30"]

1. c4 {[%emt 0:00:00]} e6 {[%emt 0:00:00]} 2. Nc3 {[%emt 0:00:53]} d5 {[%emt 0:00:00]} 3. e3 {[%emt 0:02:57]} Nf6 {[%emt 0:01:55]} 4. Nf3 {[%emt 0:02:44]} c5 {[%emt 0:11:12]} 5. cxd5 {[%emt 0:00:46]} exd5 {[%emt 0:02:46]} 6. d4 {[%emt 0:00:13]} Nc6 {[%emt 0:01:59]} 7. Bb5 {[%emt 0:00:42]} a6 {[%emt 0:08:29]} 8. Bxc6+ {[%emt 0:00:53]} bxc6 {[%emt 0:00:14]} 9. O-O {[%emt 0:02:46]} Bd6 {[%emt 0:04:05]} 10. dxc5 {[%emt 0:01:25]} Bxc5 {[%emt 0:00:05]} 11. b3 {[%emt 0:00:12]} Bg4 {[%emt 0:06:42]} 12. h3 {[%emt 0:00:31]} Bh5 {[%emt 0:00:54]} 13. Bb2 {[%emt 0:01:12]} O-O {[%emt 0:06:02]} 14. Ne2 {[%emt 0:00:07]} Bxf3 {[%emt 0:18:05]} 15. gxf3 $11 {[%emt 0:01:54]} Nd7 {[%emt 0:01:47]} 16. f4 {[%emt 0:06:29]} Qh4 {[%emt 0:03:08]} 17. Kg2 {[%emt 0:02:51]} f5 {[%emt 0:04:26]} 18. Ng3 {[%emt 0:05:15]} Qh6 {[%emt 0:03:03]} 19. Rc1 {[%emt 0:06:35]} Qe6 {[%emt 0:05:45]} 20. Rxc5 {[%emt 0:06:27]} Nxc5 {[%emt 0:00:27]} 21. Qd4 {[%emt 0:00:31]} Qf6 {[%emt 0:00:51]} 22. Qxf6 {[%emt 0:00:03]} gxf6 {[%emt 0:00:15]} 23. Ba3 {[%emt 0:00:09]} Ne4 {[%emt 0:01:08]} 24. Bxf8 {[%emt 0:05:21]} Nxg3 {[%emt 0:00:06]} 25. Kxg3 {[%emt 0:00:26]} Kxf8 {[%emt 0:00:34]} 26. Rc1 {[%emt 0:00:22]} Rc8 {[%emt 0:00:14]} 27. b4 {[%emt 0:17:05]} Ke7 {[%emt 0:00:49]} 28. Kf3 {[%emt 0:09:25]} Kd6 {[%emt 0:02:10]} 29. Rc5 {[%emt 0:06:58] Ke5 [%emt 00:04:32] Ke4+} 1/2-1/2

[Event "European Amateur-ch U2300 2019"]
[Site "Rhodes"]
[Date "2019.04.07"]
[Round "2.5"]
[White "Andreev, Stanislav"]
[Black "Samaridis, Konstantinos"]
[Result "1-0"]
[ECO "D87"]
[WhiteElo "2140"]
[BlackElo "2022"]
[Annotator "NA"]
[PlyCount "65"]
[EventDate "2019.04.06"]
[EventType "swiss"]
[EventCountry "GRE"]
[SourceTitle "playchess.com"]
[Source "ChessBase"]
[SourceQuality "1"]
[TimeControl "40/5400+30:1800+30"]

1. d4 {[%emt 0:00:00]} Nf6 {[%emt 0:00:00]} 2. c4 {[%emt 0:00:00]} g6 {[%emt 0:00:00]} 3. Nc3 {[%emt 0:00:19]} d5 {[%emt 0:00:08]} 4. cxd5 {[%emt 0:00:14]} Nxd5 {[%emt 0:00:13]} 5. e4 {[%emt 0:00:14]} Nxc3 {[%emt 0:00:06]} 6. bxc3 {[%emt 0:00:06]} Bg7 {[%emt 0:00:09]} 7. Bc4 {[%emt 0:00:19]} c5 {[%emt 0:00:17]} 8. Ne2 {[%emt 0:00:25]} Nc6 {[%emt 0:00:24]} 9. Be3 {[%emt 0:00:33]} O-O {[%emt 0:00:10]} 10. O-O {[%emt 0:00:10]} b6 {[%emt 0:00:03]} 11. Rb1 {[%emt 0:12:35]} Na5 {[%emt 0:05:23]} 12. Bd5 {[%emt 0:02:31]} Rb8 {[%emt 0:05:30]} 13. Bf4 {[%emt 0:12:21]} e6 {[%emt 0:13:00]} 14. Bxb8 {[%emt 0:00:56]} exd5 {[%emt 0:00:05]} 15. Bxa7 {[%emt 0:11:56]} Nc4 {[%emt 0:03:23]} 16. dxc5 {[%emt 0:00:37]} Qe7 {[%emt 0:09:33]} 17. Bxb6 {[%emt 0:04:21]} dxe4 {[%emt 0:01:17]} 18. Nd4 {[%emt 0:04:54]} Qg5 {[%emt 0:07:52]} 19. f4 {[%emt 0:19:18]} exf3 {[%emt 0:03:43]} 20. Nxf3 {[%emt 0:00:56]} Qe3+ {[%emt 0:00:31]} 21. Kh1 {[%emt 0:02:45]} Bxc3 {[%emt 0:04:05]} 22. Qc1 {[%emt 0:02:19]} Nd2 {[%emt 0:03:31]} 23. Nxd2 {[%emt 0:00:27]} Bxd2 {[%emt 0:00:11]} 24. Qc2 {[%emt 0:02:20]} Qh6 {[%emt 0:11:00]} 25. Bc7 {[%emt 0:01:38]} Be6 {[%emt 0:04:22]} 26. Rbd1 {[%emt 0:02:15]} Be3 {[%emt 0:00:39]} 27. Bd6 {[%emt 0:00:40]} Ra8 {[%emt 0:00:16]} 28. a4 {[%emt 0:00:45]} Qh4 {[%emt 0:04:51]} 29. Rde1 {[%emt 0:01:29]} Bf5 {[%emt 0:09:10]} 30. Qe2 {[%emt 0:02:56]} Bg5 {[%emt 0:06:01]} 31. a5 {[%emt 0:08:49]} Rxa5 {[%emt 0:03:16]} 32. Qe8+ {[%emt 0:00:44]} Kg7 {[%emt 0:00:06]} 33. Bf8+ {[%emt 0:00:21]} 1-0

[Event "European Amateur-ch U2300 2019"]
[Site "Rhodes"]
[Date "2019.04.08"]
[Round "3.1"]
[White "Samaridis, Konstantinos"]
[Black "Yungucu, Arda"]
[Result "1/2-1/2"]
[ECO "B33"]
[WhiteElo "2022"]
[BlackElo "1959"]
[Annotator "NA"]
[PlyCount "67"]
[EventDate "2019.04.06"]
[EventType "swiss"]
[EventCountry "GRE"]
[SourceTitle "playchess.com"]
[Source "ChessBase"]
[SourceQuality "1"]
[TimeControl "40/5400+30:1800+30"]

1. e4 {[%emt 0:00:00]} c5 {[%emt 0:01:42]} 2. Nf3 {[%emt 0:00:00]} Nc6 {[%emt 0:00:07]} 3. d4 {[%emt 0:00:00]} cxd4 {[%emt 0:00:09]} 4. Nxd4 {[%emt 0:00:00]} Nf6 {[%emt 0:00:08]} 5. Nc3 {[%emt 0:00:02]} e5 {[%emt 0:00:06]} 6. Ndb5 {[%emt 0:00:06]} d6 {[%emt 0:00:14]} 7. Bg5 {[%emt 0:00:11]} a6 {[%emt 0:00:10]} 8. Na3 {[%emt 0:00:04]} b5 {[%emt 0:00:09]} 9. Nd5 {[%emt 0:00:09]} Be7 {[%emt 0:00:09]} 10. Bxf6 {[%emt 0:00:10]} Bxf6 {[%emt 0:00:08]} 11. c4 {[%emt 0:00:07]} b4 {[%emt 0:00:30]} 12. Nc2 {[%emt 0:00:08]} a5 {[%emt 0:00:16]} 13. g3 {[%emt 0:00:54]} Bg5 {[%emt 0:03:30]} 14. h4 {[%emt 0:01:41]} Bh6 {[%emt 0:02:45]} 15. Bh3 {[%emt 0:01:20]} O-O {[%emt 0:08:42] LiveBook: 4 Games} 16. Kf1 {[%emt 0:05:00]} ({White should play} 16. Bxc8 $14 Rxc8 17. b3) 16... Be6 {[%emt 0:21:21]} 17. Kg2 $11 {[%emt 0:02:24]} Ne7 {[%emt 0:07:14]} 18. Nxe7+ {[%emt 0:00:43]} Qxe7 {[%emt 0:00:02]} 19. Qd3 {[%emt 0:02:30]} g6 {[%emt 0:15:57]} 20. h5 {[%emt 0:03:53]} Kg7 {[%emt 0:04:01]} 21. Bxe6 {[%emt 0:15:26]} fxe6 {[%emt 0:03:49]} 22. hxg6 {[%emt 0:02:34]} hxg6 {[%emt 0:01:14]} 23. Ne3 {[%emt 0:05:22]} Bxe3 {[%emt 0:07:04]} 24. Qxe3 {[%emt 0:00:29]} Rh8 {[%emt 0:00:12]} 25. Rxh8 {[%emt 0:01:20]} Rxh8 {[%emt 0:00:31]} 26. Qb6 {[%emt 0:15:56]} Rc8 {[%emt 0:12:26]} 27. Rh1 {[%emt 0:24:19]} Qc7 {[%emt 0:08:43]} 28. Qe3 {[%emt 0:00:05]} Qxc4 {[%emt 0:00:33]} 29. Qh6+ {[%emt 0:00:15]} Kf7 {[%emt 0:00:25]} 30. Qh7+ {[%emt 0:02:57]} Kf6 {[%emt 0:00:10]} 31. Qh4+ {[%emt 0:01:29]} Kf7 {[%emt 0:00:08]} 32. Qh7+ {[%emt 0:04:08]} Kf6 {[%emt 0:00:13]} 33. Qh4+ {[%emt 0:05:36]} Kf7 {[%emt 0:06:29]} 34. Qh7+ {[%emt 0:06:49]} 1/2-1/2

[Event "European Amateur-ch U2300 2019"]
[Site "Rhodes"]
[Date "2019.04.08"]
[Round "3.2"]
[White "Minko, Dmitry"]
[Black "Andreev, Stanislav"]
[Result "0-1"]
[ECO "B15"]
[WhiteElo "2169"]
[BlackElo "2140"]
[Annotator "NA"]
[PlyCount "74"]
[EventDate "2019.04.06"]
[EventType "swiss"]
[EventCountry "GRE"]
[SourceTitle "playchess.com"]
[Source "ChessBase"]
[SourceQuality "1"]
[TimeControl "40/5400+30:1800+30"]

1. e4 {[%emt 0:00:00]} c6 {[%emt 0:00:00]} 2. Nc3 {[%emt 0:00:00]} d5 {[%emt 0:00:01]} 3. Nf3 {[%emt 0:00:00]} dxe4 {[%emt 0:00:38]} 4. Nxe4 {[%emt 0:00:06]} Nf6 {[%emt 0:00:05]} 5. Nxf6+ {[%emt 0:00:11]} exf6 {[%emt 0:00:08]} 6. Bc4 {[%emt 0:00:08]} Bd6 {[%emt 0:00:39]} 7. Qe2+ {[%emt 0:00:54]} Be7 {[%emt 0:00:09]} 8. O-O {[%emt 0:01:37]} O-O {[%emt 0:00:11]} 9. d4 {[%emt 0:03:26]} Bg4 {[%emt 0:06:54]} 10. Be3 {[%emt 0:08:03]} Bd6 {[%emt 0:02:03]} 11. Bb3 {[%emt 0:17:15]} Nd7 {[%emt 0:04:09]} 12. h3 {[%emt 0:05:48]} Bh5 $11 {[%emt 0:02:31]} 13. g4 {[%emt 0:05:24]} Bg6 {[%emt 0:00:15]} 14. Nh4 {[%emt 0:00:06]} Qc7 {[%emt 0:14:29]} 15. Nxg6 {[%emt 0:07:10]} hxg6 {[%emt 0:00:53]} 16. f4 {[%emt 0:08:53]} Rfe8 {[%emt 0:05:05]} 17. Qf3 {[%emt 0:04:50]} f5 {[%emt 0:07:59]} 18. g5 {[%emt 0:09:54]} Re4 {[%emt 0:01:39]} 19. c3 {[%emt 0:07:47]} Nb6 {[%emt 0:22:56]} 20. Bc2 {[%emt 0:01:14]} Re7 {[%emt 0:00:14]} 21. Bb3 {[%emt 0:10:41]} Rae8 {[%emt 0:04:02]} 22. Bd2 {[%emt 0:02:23]} c5 {[%emt 0:03:25]} 23. dxc5 {[%emt 0:03:13]} Qxc5+ {[%emt 0:03:22]} 24. Kh1 {[%emt 0:00:07]} Nc4 {[%emt 0:01:05]} 25. Bxc4 {[%emt 0:01:45]} Qxc4 {[%emt 0:00:06]} 26. b3 {[%emt 0:00:34]} Qc7 {[%emt 0:00:58]} 27. Rf2 {[%emt 0:01:19]} Re4 {[%emt 0:01:16]} 28. Raf1 {[%emt 0:00:19]} b5 {[%emt 0:01:06]} 29. h4 {[%emt 0:00:36]} Bc5 {[%emt 0:04:07]} 30. Rh2 {[%emt 0:00:32]} Be3 {[%emt 0:00:52]} 31. Bxe3 {[%emt 0:00:27]} Rxe3 {[%emt 0:00:08]} 32. Qd5 {[%emt 0:00:04]} Qxc3 {[%emt 0:08:10]} 33. Qxb5 {[%emt 0:00:15]} Re1 {[%emt 0:00:27]} 34. Rhf2 {[%emt 0:01:18]} Rxf1+ {[%emt 0:00:48]} 35. Rxf1 {[%emt 0:00:04]} Qh3+ {[%emt 0:00:11]} 36. Kg1 {[%emt 0:00:06]} Qg3+ {[%emt 0:00:22]} 37. Kh1 {[%emt 0:00:06]} Re3 {[%emt 0:03:08]} 0-1

[Event "European Amateur-ch U2300 2019"]
[Site "Rhodes"]
[Date "2019.04.08"]
[Round "3.3"]
[White "Brouwer, Dennis"]
[Black "Cmiel, Thorsten"]
[Result "1/2-1/2"]
[ECO "B52"]
[WhiteElo "2179"]
[BlackElo "2109"]
[Annotator "NA"]
[PlyCount "81"]
[EventDate "2019.04.06"]
[EventType "swiss"]
[EventCountry "GRE"]
[SourceTitle "playchess.com"]
[Source "ChessBase"]
[SourceQuality "1"]
[TimeControl "40/5400+30:1800+30"]

1. e4 {[%emt 0:00:00]} c5 {[%emt 0:01:11]} 2. Nf3 {[%emt 0:00:00]} d6 {[%emt 0:00:05]} 3. Bb5+ {[%emt 0:00:00]} Bd7 {[%emt 0:00:06]} 4. Bxd7+ {[%emt 0:00:06]} Qxd7 {[%emt 0:00:02]} 5. c4 {[%emt 0:00:13]} Nc6 {[%emt 0:09:16]} 6. Nc3 {[%emt 0:00:12]} g6 {[%emt 0:00:46]} 7. d4 {[%emt 0:00:11]} cxd4 {[%emt 0:00:10]} 8. Nxd4 {[%emt 0:00:07]} Bg7 {[%emt 0:00:02]} 9. Be3 {[%emt 0:00:32]} Nf6 {[%emt 0:00:28]} 10. f3 {[%emt 0:00:11]} O-O {[%emt 0:02:07]} 11. O-O {[%emt 0:00:09]} Rfc8 {[%emt 0:10:23]} 12. b3 {[%emt 0:00:46]} Qd8 {[%emt 0:03:41]} 13. Qd2 {[%emt 0:01:27] LiveBook: 59 Games} Nd7 {[%emt 0:01:48]} 14. Nde2 {[%emt 0:04:33]} Nc5 {[%emt 0:04:59]} 15. Rab1 $14 {[%emt 0:07:54]} Qf8 {[%emt 0:06:59]} 16. Rfd1 {[%emt 0:02:56]} Ne5 {[%emt 0:04:51]} 17. h3 {[%emt 0:03:30]} b6 {[%emt 0:05:18]} 18. Kh1 {[%emt 0:13:26]} Rd8 {[%emt 0:02:37]} 19. Nd4 {[%emt 0:02:03]} Rac8 {[%emt 0:01:22]} 20. Ncb5 {[%emt 0:05:37]} a6 {[%emt 0:01:28]} 21. Nc3 {[%emt 0:01:20]} e6 {[%emt 0:01:44]} 22. Nde2 {[%emt 0:15:52]} Rc6 {[%emt 0:10:12]} 23. f4 {[%emt 0:04:16]} Ned7 {[%emt 0:00:17]} 24. Rbc1 {[%emt 0:04:42]} Nb7 {[%emt 0:14:42]} 25. Nd4 {[%emt 0:03:31]} Rcc8 {[%emt 0:02:08]} 26. Qf2 {[%emt 0:01:10]} Qe7 {[%emt 0:01:26]} 27. Qf3 {[%emt 0:01:21]} Rc7 {[%emt 0:05:29]} 28. Qg3 {[%emt 0:07:45]} Rdc8 {[%emt 0:05:51]} 29. Bg1 {[%emt 0:04:21]} Nbc5 {[%emt 0:00:00]} 30. Qe3 {[%emt 0:03:10]} Kh8 {[%emt 0:00:00]} 31. Qe2 {[%emt 0:01:12]} Nb7 {[%emt 0:00:00]} 32. Qd2 {[%emt 0:01:25]} Kg8 {[%emt 0:00:00]} 33. Nde2 {[%emt 0:01:34]} Qe8 {[%emt 0:02:20]} 34. Qd3 {[%emt 0:03:09]} Ndc5 {[%emt 0:00:14]} 35. Qd2 {[%emt 0:01:24]} Nd7 {[%emt 0:01:35]} 36. Nd4 {[%emt 0:01:15]} Ndc5 {[%emt 0:00:14]} 37. Be3 {[%emt 0:01:43]} Kh8 {[%emt 0:01:40]} 38. Re1 {[%emt 0:02:00]} Kg8 {[%emt 0:00:24]} 39. Red1 {[%emt 0:01:29]} Nd7 {[%emt 0:00:14]} 40. Na4 {[%emt 0:00:00]} Nbc5 {[%emt 0:00:00]} 41. Nc3 {[%emt 0:13:48]} 1/2-1/2

[Event "European Amateur-ch U2300 2019"]
[Site "Rhodes"]
[Date "2019.04.08"]
[Round "3.4"]
[White "Shukan, Alexander"]
[Black "Stavropoulos, Konstantinos"]
[Result "0-1"]
[ECO "B26"]
[WhiteElo "2088"]
[BlackElo "2001"]
[Annotator "NA"]
[PlyCount "78"]
[EventDate "2019.04.06"]
[EventType "swiss"]
[EventCountry "GRE"]
[SourceTitle "playchess.com"]
[Source "ChessBase"]
[SourceQuality "1"]
[TimeControl "40/5400+30:1800+30"]

1. e4 {[%emt 0:00:00]} c5 {[%emt 0:00:00]} 2. Nc3 {[%emt 0:00:00]} Nc6 {[%emt 0:00:34]} 3. g3 {[%emt 0:00:00]} g6 {[%emt 0:00:14]} 4. d3 {[%emt 0:00:01]} Bg7 {[%emt 0:00:16]} 5. Be3 {[%emt 0:00:04]} d6 {[%emt 0:00:14]} 6. Qd2 {[%emt 0:00:04]} b6 {[%emt 0:00:16]} 7. Bg2 {[%emt 0:00:06]} Bb7 {[%emt 0:00:08]} 8. Nge2 {[%emt 0:00:04]} Qd7 {[%emt 0:00:14]} 9. h3 {[%emt 0:01:29]} f5 {[%emt 0:01:45]} 10. exf5 {[%emt 0:01:23]} gxf5 {[%emt 0:01:39]} 11. Nf4 {[%emt 0:03:22]} Nf6 {[%emt 0:01:57]} 12. O-O-O {[%emt 0:07:53]} e6 {[%emt 0:20:17]} 13. g4 {[%emt 0:00:18]} e5 {[%emt 0:00:45]} 14. g5 {[%emt 0:05:40]} Ng8 {[%emt 0:01:18]} 15. Nh5 {[%emt 0:06:49]} f4 {[%emt 0:00:40]} 16. Bxf4 $16 {[%emt 0:00:21]} exf4 {[%emt 0:00:07]} 17. h4 {[%emt 0:05:28]} Be5 {[%emt 0:22:00]} 18. Rde1 {[%emt 0:18:28]} Qf7 {[%emt 0:07:06]} 19. g6 {[%emt 0:01:12]} Qxg6 {[%emt 0:16:21]} 20. Nxf4 {[%emt 0:00:40]} Qh6 {[%emt 0:00:10]} 21. Ne6 {[%emt 0:28:55]} Qxe6 {[%emt 0:04:44]} 22. d4 {[%emt 0:06:50]} cxd4 {[%emt 0:01:40]} 23. Nb5 {[%emt 0:01:12]} Qxa2 {[%emt 0:01:07]} 24. Qg5 {[%emt 0:05:17]} Qa1+ {[%emt 0:01:01]} 25. Kd2 {[%emt 0:00:04]} Qa5+ {[%emt 0:00:07]} 26. Kd1 {[%emt 0:00:04]} Qxb5 {[%emt 0:00:15]} 27. f4 {[%emt 0:02:21]} Nge7 {[%emt 0:04:08]} 28. Qh5+ {[%emt 0:00:27]} Ng6 {[%emt 0:01:15]} 29. Qg5 {[%emt 0:01:35]} Nxf4 {[%emt 0:01:37]} 30. Rhf1 {[%emt 0:01:26]} d3 {[%emt 0:01:18]} 31. Rxf4 {[%emt 0:00:16]} dxc2+ {[%emt 0:00:06]} 32. Kxc2 {[%emt 0:00:57]} Qxb2+ {[%emt 0:01:15]} 33. Kd1 {[%emt 0:00:06]} Qb1+ {[%emt 0:00:26]} 34. Kd2 {[%emt 0:00:07]} Qg6 {[%emt 0:00:11]} 35. Bxc6+ {[%emt 0:01:08]} Bxc6 {[%emt 0:00:26]} 36. Rxe5+ {[%emt 0:00:04]} dxe5 {[%emt 0:00:51]} 37. Qxe5+ {[%emt 0:00:04]} Kd7 {[%emt 0:00:11]} 38. Qd4+ {[%emt 0:02:07]} Kc7 {[%emt 0:00:23]} 39. Qe5+ {[%emt 0:00:31]} Qd6+ {[%emt 0:00:07]} 0-1

[Event "European Amateur-ch U2300 2019"]
[Site "Rhodes"]
[Date "2019.04.08"]
[Round "3.5"]
[White "Zherebtsova, Alexandra"]
[Black "Van De Perre, Tom"]
[Result "1/2-1/2"]
[ECO "D31"]
[WhiteElo "2203"]
[BlackElo "2102"]
[Annotator "NA"]
[PlyCount "82"]
[EventDate "2019.04.06"]
[EventType "swiss"]
[EventCountry "GRE"]
[SourceTitle "playchess.com"]
[Source "ChessBase"]
[SourceQuality "1"]
[TimeControl "40/5400+30:1800+30"]

1. d4 {[%emt 0:00:53]} d5 {[%emt 0:00:00]} 2. c4 {[%emt 0:00:22]} e6 {[%emt 0:00:00]} 3. Nc3 {[%emt 0:00:51]} c6 {[%emt 0:00:06]} 4. cxd5 {[%emt 0:03:29]} exd5 {[%emt 0:00:08]} 5. Nf3 {[%emt 0:01:27] LiveBook: 667 Games} Bd6 {[%emt 0:00:43]} 6. Bg5 {[%emt 0:07:51]} Ne7 {[%emt 0:01:07]} 7. e3 {[%emt 0:03:17]} Bf5 {[%emt 0:00:57]} 8. Be2 {[%emt 0:04:27]} Nd7 {[%emt 0:02:25]} 9. Bh4 {[%emt 0:06:52]} O-O {[%emt 0:09:49]} 10. Bg3 {[%emt 0:01:09]} Nc8 $11 {[%emt 0:05:35]} 11. Nh4 {[%emt 0:08:17]} Bg6 {[%emt 0:04:16]} 12. Nxg6 {[%emt 0:11:33]} hxg6 {[%emt 0:02:02]} 13. Bd3 {[%emt 0:03:34]} Re8 {[%emt 0:07:23]} 14. Qf3 {[%emt 0:12:20]} Qg5 {[%emt 0:12:51]} 15. Bxd6 {[%emt 0:07:41]} Nxd6 {[%emt 0:00:18]} 16. h4 {[%emt 0:00:37]} Qh6 {[%emt 0:06:43]} 17. O-O-O {[%emt 0:06:26]} Nf6 {[%emt 0:03:44]} 18. g4 {[%emt 0:00:45]} g5 {[%emt 0:05:38]} 19. Qg2 {[%emt 0:06:50]} Nfe4 {[%emt 0:05:04]} 20. hxg5 {[%emt 0:01:42]} Qxg5 {[%emt 0:00:32]} 21. Rh5 {[%emt 0:01:30]} Qf6 {[%emt 0:01:15]} 22. Rdh1 {[%emt 0:01:20]} Kf8 {[%emt 0:01:23]} 23. Bxe4 {[%emt 0:04:21]} dxe4 {[%emt 0:03:02]} 24. Re5 {[%emt 0:02:45]} g6 {[%emt 0:02:14]} 25. Nxe4 {[%emt 0:01:11]} Nxe4 {[%emt 0:01:35]} 26. Qxe4 {[%emt 0:00:04]} Rad8 {[%emt 0:04:09]} 27. g5 {[%emt 0:00:45]} Qg7 {[%emt 0:00:01]} 28. f4 {[%emt 0:00:30]} Rxe5 {[%emt 0:01:53]} 29. dxe5 {[%emt 0:00:21]} Rd7 {[%emt 0:04:07]} 30. Qb4+ {[%emt 0:00:41]} Ke8 {[%emt 0:01:03]} 31. Kc2 {[%emt 0:00:43]} Qf8 {[%emt 0:01:03]} 32. Qxf8+ {[%emt 0:00:17]} Kxf8 {[%emt 0:00:09]} 33. Rh8+ {[%emt 0:00:53]} Ke7 {[%emt 0:00:12]} 34. Rh2 {[%emt 0:00:29]} Ke6 {[%emt 0:00:33]} 35. e4 {[%emt 0:00:09]} Rd4 {[%emt 0:00:27]} 36. Re2 {[%emt 0:00:04]} c5 {[%emt 0:00:43]} 37. Kc3 {[%emt 0:00:22]} b5 {[%emt 0:00:40]} 38. a3 {[%emt 0:00:31]} a5 {[%emt 0:01:07]} 39. b3 {[%emt 0:01:02]} a4 {[%emt 0:01:21]} 40. bxa4 {[%emt 0:00:00]} Rxa4 {[%emt 0:00:00]} 41. Kb2 {[%emt 0:01:25]} Rd4 {[%emt 0:01:15]} 1/2-1/2

[Event "European Amateur-ch U2300 2019"]
[Site "Rhodes"]
[Date "2019.04.09"]
[Round "4.3"]
[White "Cmiel, Thorsten"]
[Black "Shukan, Alexander"]
[Result "1/2-1/2"]
[ECO "A25"]
[WhiteElo "2109"]
[BlackElo "2088"]
[Annotator "NA"]
[PlyCount "43"]
[EventDate "2019.04.06"]
[EventType "swiss"]
[EventCountry "GRE"]
[SourceTitle "playchess.com"]
[Source "ChessBase"]
[SourceQuality "1"]
[TimeControl "40/5400+30:1800+30"]

1. c4 {[%emt 0:02:42]} e5 {[%emt 0:00:00]} 2. Nc3 {[%emt 0:01:37]} Nc6 {[%emt 0:00:00]} 3. e3 {[%emt 0:02:21]} Nge7 {[%emt 0:00:00]} 4. Nf3 {[%emt 0:09:39]} g6 {[%emt 0:01:24]} 5. d4 {[%emt 0:01:13]} exd4 {[%emt 0:00:04]} 6. exd4 {[%emt 0:02:26]} Bg7 {[%emt 0:06:40]} 7. d5 {[%emt 0:02:00]} Ne5 {[%emt 0:03:05]} 8. Nxe5 {[%emt 0:06:45]} Bxe5 {[%emt 0:00:05]} 9. Bd3 {[%emt 0:02:50]} O-O {[%emt 0:00:14]} 10. Bh6 {[%emt 0:06:19]} Re8 {[%emt 0:04:41]} 11. O-O {[%emt 0:00:10]} d6 {[%emt 0:00:10]} 12. Bg5 {[%emt 0:03:10]} f6 {[%emt 0:08:56]} 13. Bd2 {[%emt 0:09:31]} Bf5 {[%emt 0:01:46]} 14. Qc2 {[%emt 0:02:30]} Qd7 {[%emt 0:05:39]} 15. Rae1 {[%emt 0:03:18]} Bd4 {[%emt 0:03:40]} 16. Ne4 {[%emt 0:02:15]} Kf7 {[%emt 0:03:08]} 17. Bc3 {[%emt 0:06:27]} Bxc3 {[%emt 0:04:12]} 18. Qxc3 {[%emt 0:00:13]} Ng8 {[%emt 0:00:05]} 19. Ng3 {[%emt 0:07:58]} Bxd3 {[%emt 0:00:25]} 20. Qxd3 {[%emt 0:00:02]} Rxe1 {[%emt 0:00:12]} 21. Rxe1 {[%emt 0:00:24]} Re8 {[%emt 0:00:04]} 22. Rxe8 {[%emt 0:02:06]} 1/2-1/2

[Event "European Amateur-ch U2300 2019"]
[Site "Rhodes"]
[Date "2019.04.10"]
[Round "5.1"]
[White "Minko, Dmitry"]
[Black "Yungucu, Arda"]
[Result "1-0"]
[ECO "B33"]
[WhiteElo "2169"]
[BlackElo "1959"]
[Annotator "NA"]
[PlyCount "71"]
[EventDate "2019.04.06"]
[EventType "swiss"]
[EventCountry "GRE"]
[SourceTitle "playchess.com"]
[Source "ChessBase"]
[SourceQuality "1"]
[TimeControl "40/5400+30:1800+30"]

1. e4 {[%emt 0:00:00]} c5 {[%emt 0:00:00]} 2. Nf3 {[%emt 0:00:00]} Nc6 {[%emt 0:00:14]} 3. d4 {[%emt 0:00:00]} cxd4 {[%emt 0:00:16]} 4. Nxd4 {[%emt 0:00:00]} Nf6 {[%emt 0:00:17]} 5. Nc3 {[%emt 0:00:00]} e5 {[%emt 0:00:35]} 6. Ndb5 {[%emt 0:00:19]} d6 {[%emt 0:00:26]} 7. a4 {[%emt 0:00:51]} a6 {[%emt 0:02:07]} 8. Na3 {[%emt 0:00:07]} Be7 {[%emt 0:01:05]} 9. Bg5 {[%emt 0:00:30]} Be6 {[%emt 0:00:45]} 10. Bxf6 {[%emt 0:00:17]} Bxf6 {[%emt 0:00:23]} 11. Bc4 {[%emt 0:00:21]} Rc8 {[%emt 0:02:39]} 12. Nd5 {[%emt 0:00:31]} Bg5 {[%emt 0:01:08]} 13. c3 {[%emt 0:00:48]} O-O {[%emt 0:01:00]} 14. O-O {[%emt 0:02:40]} Kh8 {[%emt 0:02:03]} 15. Qe2 {[%emt 0:02:18]} Qe8 {[%emt 0:02:46] B33: Sicilian: Pelikan and Sveshnikov Variations} (15... Nb8 16. Rfd1 Nd7 17. a5 Qxa5 18. Nb5 Qd8 19. Nxd6 Rb8 20. Ne3 Bxe3 21. Bxe6 fxe6 22. Qxe3 Qc7 23. Rd2 Nc5 24. Rad1 Nb3 25. Rd3 Nc5 26. R3d2 Nb3 27. Rd3 {½-½ (27) Panarin,M (2555)-Jobava,B (2708) Sochi 2014}) 16. Nb6 {[%emt 0:17:42]} Rd8 {[%emt 0:01:25]} 17. b4 {[%emt 0:03:24]} (17. Rad1 $16) 17... f5 {[%emt 0:07:24]} 18. b5 {[%emt 0:05:13]} axb5 $146 {[%emt 0:10:08]} ({Predecessor:} 18... Na5 19. Bxe6 Qxe6 20. Rab1 fxe4 21. c4 axb5 22. axb5 d5 23. Nxd5 {1-0 (41) Kuijf,M (2445)-Martinez Gonzalez,F (2295) Sitges 1993}) 19. Nxb5 $14 {[%emt 0:15:51]} Na5 {[%emt 0:26:17]} 20. Rfd1 {[%emt 0:11:49]} Qf7 {[%emt 0:05:55]} 21. Bxe6 {[%emt 0:03:21]} Qxe6 {[%emt 0:00:39]} 22. Rd5 {[%emt 0:12:03]} fxe4 {[%emt 0:13:53]} 23. Qxe4 {[%emt 0:04:44]} Rf4 {[%emt 0:01:11]} 24. Qd3 {[%emt 0:01:09]} e4 {[%emt 0:04:39]} 25. Qd1 {[%emt 0:02:38]} e3 {[%emt 0:03:44]} 26. Nd4 {[%emt 0:06:45]} exf2+ {[%emt 0:03:53]} 27. Kf1 {[%emt 0:00:03]} Qe3 {[%emt 0:03:03]} 28. Rxg5 {[%emt 0:02:34]} Re8 {[%emt 0:01:42]} 29. Qe2 {[%emt 0:00:31]} Qxe2+ {[%emt 0:03:32]} 30. Nxe2 {[%emt 0:00:09]} Rfe4 {[%emt 0:00:04]} 31. Rxa5 {[%emt 0:00:41]} Rxe2 {[%emt 0:00:08]} 32. Ra8 {[%emt 0:00:04]} Rxa8 {[%emt 0:01:32]} 33. Kxe2 {[%emt 0:00:09]} Rf8 {[%emt 0:00:11]} 34. Rf1 {[%emt 0:00:12]} g5 {[%emt 0:00:12]} 35. Rxf2 {[%emt 0:00:08]} Re8+ {[%emt 0:00:03]} 36. Kd3 {[%emt 0:00:45]} 1-0